Cogmind - Beta 15 @@@ ROGUE MODE // 2025.10.10 @ 11:57:06 Player: beans Result: Destroyed by 8R-AWN with 8R-AWN's Boregun Performance ------------- Evolutions (1) 500 Regions Visited (5) 1000 Robots Destroyed (58) 290 Value Destroyed (1360) 1360 Prototype IDs (29) 580 Alien Tech Used (0) 0 Bonus (314) 314 TOTAL SCORE: 4044 Bonus ------- Follower Combat Kills 14 Aligned with FarCom 300 Cogmind --------- Core Integrity 0/400 Matter 135/300 Energy 265/265 System Corruption 0% Temperature Cool (48) Movement Treading (240) Ox1 Location -9/Exiles Parts ------- > --- POWER (1) -------- Reinforced Ion Engine > --- PROPULSION (2) --- Light Treads Light Treads > --- UTILITY (3) ------ High-capacity Storage Unit Transport Network Coupler Weapon Shielding > --- WEAPON (3) ------- Heavy Assault Rifle Improved Assault Rifle Improved Assault Rifle > --- INVENTORY (20) --- Ion Engine Heavy Ion Engine Light Treads Light Treads Light Treads Improved Heat Sink Small Matter Pod (50) Experimental Sensor Array Light Armor Plating Splice Drone Bay (6/6) Heavy Assault Rifle Improved Assault Rifle Grenade Launcher Datajack Makeshift Sword Peak State ------------ > --- POWER ------------ Reinforced Ion Engine > --- PROPULSION ------- Light Treads > --- UTILITY ---------- High-capacity Storage Unit Transport Network Coupler Weapon Shielding > --- WEAPON ----------- Heavy Assault Rifle Improved Assault Rifle Improved Assault Rifle > --- INVENTORY -------- Ion Engine Heavy Ion Engine Light Treads Light Treads Light Treads Light Treads Improved Heat Sink Small Matter Pod Experimental Sensor Array Light Armor Plating Splice Drone Bay Heavy Assault Rifle Improved Assault Rifle Grenade Launcher Datajack Makeshift Sword [Rating: 18] Favorites ----------- Power Light Nuclear Core Engine Ion Engine Power Core Light Nuclear Core Propulsion Light Treads Treads Light Treads Utility High-capacity Storage Unit Device Splice Drone Bay Storage High-capacity Storage Unit Processor Transport Network Coupler Protection Light Armor Plating Weapon Light Assault Rifle Ballistic Gun Light Assault Rifle Launcher Grenade Launcher Build | -11 -10 -10 -9 -9 -9 ------- Run | Yrd Mat Min Mat Min Exi Slots Evolved 2 | . . . 2 . . Power . | . . . . . . Propulsion . | . . . . . . Utility 1 | . . . 1 . . Weapon 1 | . . . 1 . . Parts Attached 32 | 3 6 3 12 2 6 Power 3 | . . 1 1 . 1 Engine 2 | . . . 1 . 1 Core 1 | . . 1 . . . Reactor . | . . . . . . Propulsion 8 | 2 2 . 3 . 1 Treads 8 | 2 2 . 3 . 1 Leg . | . . . . . . Wheel . | . . . . . . Hover . | . . . . . . Flight . | . . . . . . Utility 6 | . 2 1 2 . 1 Device 1 | . . 1 . . . Storage 1 | . 1 . . . . Processor 1 | . 1 . . . . Hackware . | . . . . . . Protection 3 | . . . 2 . 1 Artifact . | . . . . . . Weapon 15 | 1 2 1 6 2 3 Energy Gun . | . . . . . . Energy Cannon . | . . . . . . Ballistic Gun 13 | 1 2 1 6 2 1 Ballistic Cannon . | . . . . . . Launcher 2 | . . . . . 2 Special Weapon . | . . . . . . Impact Weapon . | . . . . . . Slashing Weapon . | . . . . . . Piercing Weapon . | . . . . . . Special Melee Weapon . | . . . . . . Unidentified Prototypes 1 | . . 1 . . . Parts Lost 16 | . 2 2 7 1 4 Power 2 | . . . 2 . . Propulsion 4 | . 1 1 1 . 1 Utility 2 | . . . 1 . 1 Weapon 8 | . 1 1 3 1 2 Highest Loss Streak 4 | . 2 2 3 1 4 To Critical Strikes . | . . . . . . Average Backups 13 | . 3 12 17 19 19 Power 1 | . . . 2 3 2 Propulsion 2 | . 1 2 3 4 3 Utility 3 | . . 3 5 5 5 Weapon 4 | . 1 4 5 6 5 Tool/Special . | . . . . . . Unused Backups 15 | . 2 . 3 1 9 Power 2 | . . . . . 2 Propulsion 3 | . 1 . . . 2 Utility 4 | . 1 . . . 3 Weapon 5 | . . . 3 1 1 Tool/Special 1 | . . . . . 1 Average Slot Usage (%) 87 | . 75 99 85 87 93 Engine 1 | . . . 3 . 5 Core 3 | . . 13 . . . Treads 24 | . 27 27 21 22 21 Storage 12 | . 13 13 11 11 11 Processor 11 | . 9 14 11 11 11 Protection 4 | . . . 5 11 10 Ballistic Gun 29 | . 24 28 31 32 32 Peak Build Rating 18 | 3 6 15 17 16 18 Average Rating 11 | 1 5 10 14 14 16 On Entrance 8 | . 3 6 11 16 15 Naked Turns . | . . . . . . Heaviest Build 62 | 1 42 47 57 52 62 Greatest Support 40 | 40 40 40 40 40 40 Greatest Overweight (x) 2 | . 2 1 1 1 2 Average Overweight (x) . | . 1 . 1 1 1 Largest Inventory Capacity 20 | 5 20 20 20 20 20 Average Capacity 19 | 5 19 19 20 20 20 Most Carried 20 | 3 9 17 20 20 20 Average Carried 13 | . 3 12 17 19 19 Final Capacity 20 | 5 20 20 20 20 20 Final Carried 20 | . 9 17 20 20 15 Class Distribution -------------------- 38% | Scavenger-Mutant 27% | Scavenger-Tank 14% | Mutant 9% | Tank 4% | Scavenger-Skirmisher 4% | Skirmisher Dominant Class ---------------- Scavenger-Mutant | -10/Materials Scavenger-Mutant | -10/Mines Tank | -9/Materials Scavenger-Tank | -9/Mines Scavenger-Tank | -9/Exiles Resources | -11 -10 -10 -9 -9 -9 ----------- Run | Yrd Mat Min Mat Min Exi Matter Collected 1256 | 160 226 161 607 102 . Remotely . | . . . . . . Salvage Created 2207 | . 578 190 1267 144 28 Parts 144 | . 40 12 80 12 . Haulers Intercepted 5 | . 2 . 3 . . Recyclers Shooed 3 | . 1 1 1 . . Parts Field Recycled . | . . . . . . Retrieved Matter . | . . . . . . Parts Self-Destructed . | . . . . . . Prevented . | . . . . . . Kills | -11 -10 -10 -9 -9 -9 ------- Run | Yrd Mat Min Mat Min Exi Combat Hostiles Destroyed 44 | . 12 3 19 3 7 Guns 37 | . 12 3 19 3 . AOE 7 | . . . . . 7 Classes Destroyed 12 | . 5 1 5 . 1 Worker 7 | . 1 . 6 . . Tunneler 3 | . . . 2 1 . Hauler 5 | . 2 . 3 . . Recycler 2 | . . 1 1 . . Mechanic 1 | . . . 1 . . Watcher 3 | . 1 . 2 . . Swarmer 6 | . 2 1 3 . . Grunt 22 | . 10 2 8 2 . Brawler 1 | . . . 1 . . Duelist 3 | . . . 2 1 . Sentry 5 | . . . 5 . . Assembled 7 | . . . . . 7 Best Kill Streak 7 | . 5 2 5 3 7 Combat Bots Only 7 | . 3 2 5 3 7 Max Kills in Single Turn 3 | . 1 1 2 1 3 Gunslinging 1 | . . . 1 . . Exploded 3 | . . . . . 3 Melee . | . . . . . . Uniques/NPCs Destroyed . | . . . . . . Combat | -11 -10 -10 -9 -9 -9 -------- Run | Yrd Mat Min Mat Min Exi Hostile Shots Fired 284 | . 88 27 100 27 42 Missed 83 | . 27 9 26 8 13 Hits 201 | . 61 18 74 19 29 Melee 12 | . . . 10 2 . Projectile 189 | . 61 18 64 17 29 Critical Strikes 11 | . . . 8 . 3 Actively Blocked 1 | . . . . . 1 Damage Taken 2749 | . 726 219 1102 248 454 Core 573 | . 117 46 276 80 54 Absorbed by Shields . | . . . . . . Redirected to Shielding 20 | . . . . . 20 Core Remaining (%) 67 | 100 . 34 . . . Volleys Fired 201 | 2 75 21 81 10 12 Largest 3 | 1 2 2 3 3 3 Hottest 69 | 20 40 40 69 69 69 Shots Fired 451 | 2 123 41 234 29 22 Gun 444 | 2 123 41 234 29 15 Cannon . | . . . . . . Launcher 7 | . . . . . 7 Special . | . . . . . . Kinetic 444 | 2 123 41 234 29 15 Thermal . | . . . . . . Explosive 7 | . . . . . 7 Electromagnetic . | . . . . . . Robot Hit Streak 12 | 2 9 10 12 12 4 Robot Miss Streak 5 | . 3 1 5 1 3 Penetration Max . | . . . . . . Secondary Targets 8 | . 1 . 6 1 . Max Gunslinging Chain 1 | . 1 . 1 1 . Shots Hit Robots 295 | 2 81 31 150 23 8 Core Hits 136 | . 38 12 60 8 18 Critical Kills 1 | . . . 1 . . Critical Parts Destroyed 1 | . . . . 1 . Critical Strikes 2 | . . . 1 1 . Destroy 2 | . . . 1 1 . Melee Attacks . | . . . . . . Impact . | . . . . . . Slashing . | . . . . . . Piercing . | . . . . . . Sneak Attacks . | . . . . . . Combat Hostiles . | . . . . . . Follow-up Attacks . | . . . . . . Damage Inflicted 3702 | 15 679 249 1936 335 488 Guns 3298 | 15 679 249 1929 335 91 Cannons . | . . . . . . Explosions 397 | . . . . . 397 Melee . | . . . . . . Ramming 7 | . . . 7 . . Kinetic 3298 | 15 679 249 1929 335 91 Thermal . | . . . . . . Explosive 397 | . . . . . 397 Electromagnetic . | . . . . . . Impact . | . . . . . . Slashing . | . . . . . . Piercing . | . . . . . . Highest Corruption . | . . . . . . Average Corruption . | . . . . . . Corruption Purged . | . . . . . . Corruption Blocked . | . . . . . . Overload Shots . | . . . . . . Overflow Damage 14 | . . . . . 14 Projectiles . | . . . . . . Explosions 14 | . . . . . 14 Melee . | . . . . . . Knockbacks . | . . . . . . Impact . | . . . . . . Kinetic . | . . . . . . Secondary . | . . . . . . Self-Inflicted Damage . | . . . . . . Shots . | . . . . . . Rammed 1 | . . . 1 . . Targets Rammed 1 | . . . 1 . . Kicked . | . . . . . . Crushed . | . . . . . . Highest Temperature 48 | . 10 10 34 20 48 Average Temperature 8 | . 3 3 9 7 22 Received Heat Transfer 936 | . 393 120 321 102 . Siege Activations . | . . . . . . Martial Activations . | . . . . . . Shielding Activations . | . . . . . . Robots Disrupted . | . . . . . . Combat Hostiles . | . . . . . . Robots Corrupted . | . . . . . . Combat Hostiles . | . . . . . . Parts Fried . | . . . . . . Impact Corruptions . | . . . . . . Robots Melted . | . . . . . . Combat Hostiles . | . . . . . . Parts Melted . | . . . . . . Heat Transferred . | . . . . . . Parts Sabotaged . | . . . . . . Parts Stolen . | . . . . . . Parts Stripped . | . . . . . . Power Chain Reactions . | . . . . . . Alert | -11 -10 -10 -9 -9 -9 ------- Run | Yrd Mat Min Mat Min Exi Maximum Alert Level . | . . . . . . Low Security (%) 100 | 100 100 100 100 100 . Level 1 . | . . . . . . Level 2 . | . . . . . . Level 3 . | . . . . . . Level 4 . | . . . . . . Level 5 . | . . . . . . High Security . | . . . . . . Max Security . | . . . . . . Peak Influence 124 | . 79 74 124 77 . Initial 27 | . . 15 . 27 . Average 24 | . 21 6 64 7 . Influence Increases 1129 | . 351 129 574 75 . Destroy 0b10 Robot/C 780 | . 240 100 380 60 . Destroy 0b10 Robot/NC 105 | . 20 5 75 5 . Destroy Leader 196 | . 66 20 100 10 . Allied During Kill 4 | . . 4 . . . Successful Hack 10 | . 10 . . . . Destroy Structure 4 | . . . 4 . . Partial Spotted 15 | . 15 . . . . Lose Combat Pursuer 15 | . . . 15 . . Influence Decreases 1129 | . 311 169 502 147 . Entered New Map 70 | . . 25 . 45 . Time Decay 984 | . 311 129 452 92 . Lost Part 75 | . . 15 50 10 . Squads Dispatched 6 | . 5 . 1 . . Investigation 3 | . 3 . . . . Extermination . | . . . . . . Reinforcement 3 | . 2 . 1 . . Assault . | . . . . . . Garrison . | . . . . . . Intercept . | . . . . . . Searches Triggered . | . . . . . . Construction Impeded . | . . . . . . Haulers Reinforced . | . . . . . . Active Scanning Responses . | . . . . . . Cargo Convoy Interrupts . | . . . . . . Stealth | -11 -10 -10 -9 -9 -9 --------- Run | Yrd Mat Min Mat Min Exi Distress Signals 2 | . . . 2 . . Communications Jammed . | . . . . . . Distress Signals . | . . . . . . Times Spotted 72 | . 24 5 32 3 8 Peak Tracking Total 9 | . 6 3 5 3 9 Tactical Retreats 1 | . . . 1 . . Traps | -11 -10 -10 -9 -9 -9 ------- Run | Yrd Mat Min Mat Min Exi Traps Triggered 2 | . 2 . . . . Indirectly . | . . . . . . Trap Hack Attempts . | . . . . . . Triggered . | . . . . . . Disarmed . | . . . . . . Reprogrammed . | . . . . . . Reused . | . . . . . . Traps Extracted . | . . . . . . Installed . | . . . . . . Triggered . | . . . . . . Machines | -11 -10 -10 -9 -9 -9 ---------- Run | Yrd Mat Min Mat Min Exi Machines Disabled 4 | . . . . . 4 Max in Single Turn 3 | . . . . . 3 Machines Repaired . | . . . . . . Machines Dismantled . | . . . . . . Machines Sabotaged . | . . . . . . Overloaded Fab Kills . | . . . . . . Hacking | -11 -10 -10 -9 -9 -9 --------- Run | Yrd Mat Min Mat Min Exi Machines Accessed 6 | . 4 1 . . 1 Terminals 4 | . 4 . . . . Fabricators . | . . . . . . Repair Stations . | . . . . . . Recycling Units . | . . . . . . Scanalyzers . | . . . . . . Garrison Access . | . . . . . . Total Hacks 10 | . 8 1 . . 1 Successful 6 | . 4 1 . . 1 Failed 4 | . 4 . . . . Catastrophic . | . . . . . . Database Lockouts . | . . . . . . Manual 5 | . 4 . . . 1 Terminals 8 | . 8 . . . . Fabricators . | . . . . . . Repair Stations . | . . . . . . Recycling Units . | . . . . . . Scanalyzers . | . . . . . . Garrison Access . | . . . . . . Terminal Hacks 6 | . 4 1 . . 1 Record 1 | . 1 . . . . Prototype ID Bank 3 | . 3 . . . . Open Door 1 | . . 1 . . . Proto ID Catalog 1 | . . . . . 1 Fabricator Hacks . | . . . . . . Repair Station Hacks . | . . . . . . Recycling Unit Hacks . | . . . . . . Scanalyzer . | . . . . . . Garrison Access Hacks . | . . . . . . Unauthorized Hacks . | . . . . . . Terminals . | . . . . . . Fabricators . | . . . . . . Repair Stations . | . . . . . . Recycling Units . | . . . . . . Scanalyzers . | . . . . . . Garrison Access . | . . . . . . Data Cores Recovered . | . . . . . . Used . | . . . . . . Hacking Detections 3 | . 3 . . . . Full Trace Events 1 | . 1 . . . . Feedback Events . | . . . . . . Feedback Blocked . | . . . . . . Robot Schematics Acquired . | . . . . . . Robots Built . | . . . . . . Authchips . | . . . . . . Time . | . . . . . . Total Robot Build Rating . | . . . . . . Part Schematics Acquired . | . . . . . . Parts Built . | . . . . . . Authchips . | . . . . . . Time . | . . . . . . Total Part Build Rating . | . . . . . . Parts Repaired . | . . . . . . Time . | . . . . . . Parts Recycled . | . . . . . . Recycled Matter . | . . . . . . Retrieved Matter . | . . . . . . Retrieved Components . | . . . . . . Parts Scanalyzed . | . . . . . . Part Schematics Acquired . | . . . . . . Parts Damaged . | . . . . . . Bothacking | -11 -10 -10 -9 -9 -9 ------------ Run | Yrd Mat Min Mat Min Exi Used RIF Installer . | . . . . . . Robots Hacked . | . . . . . . Non-combat . | . . . . . . Combat . | . . . . . . Robot Hacks Applied . | . . . . . . Relay Couplers Released . | . . . . . . Fabnet Peak Effective % . | . . . . . . Robots Rewired . | . . . . . . Allies Hacked . | . . . . . . Hacks Repelled . | . . . . . . Allies | -11 -10 -10 -9 -9 -9 -------- Run | Yrd Mat Min Mat Min Exi Total Allies 4 | . . 1 . 3 . Largest Group 3 | . . 1 . 3 3 Highest-Rated Group 40 | . . 31 . 40 40 Highest-Rated Ally 31 | . . 31 . 16 16 Total Orders . | . . . . . . Ally Attacks 9 | . . 4 . . 5 Total Damage 72 | . . 41 . . 31 Kills 2 | . . 2 . . . Allies Corrupted . | . . . . . . Allies Melted . | . . . . . . Intel | -11 -10 -10 -9 -9 -9 ------- Run | Yrd Mat Min Mat Min Exi Active Infowar (turns) 5413 | . 1026 1469 1290 1020 608 T.N.C. 5413 | . 1026 1469 1290 1020 608 Robot Analysis Total . | . . . . . . Derelict Logs Recovered . | . . . . . . Drone Launches . | . . . . . . Drone Recoveries . | . . . . . . Exploration | -11 -10 -10 -9 -9 -9 ------------- Run | Yrd Mat Min Mat Min Exi Turns Passed 6006 | 38 1581 1469 1290 1020 608 Spaces Moved 2223 | 30 574 576 417 397 229 Core 17 | 17 . . . . . Treads 2206 | 13 574 576 417 397 229 Legs . | . . . . . . Wheels . | . . . . . . Hover . | . . . . . . Flight . | . . . . . . Fastest Speed 50 | 50 160 160 240 240 240 Average Speed 238 | 97 241 239 240 240 241 Slowest Speed 320 | 160 320 240 240 240 320 Overloaded Moves . | . . . . . . Propulsion Burnouts . | . . . . . . Robots Hopped . | . . . . . . Potential Cave-ins . | . . . . . . Cave-ins Triggered . | . . . . . . Exploration Rate (%) 62 | 3 78 95 55 85 60 Regions Visited 5 Branch Regions 3 Pre-discovered Areas . | . . . . . . Known Exits Taken . | . . . . . . Unknown Exits Taken 5 | 1 1 1 1 1 . Scrap Searched 3 | . . 1 . 2 . Spaces Dug . | . . . . . . Terrain Destroyed 25 | . . . . . 25 Melee . | . . . . . . Projectile . | . . . . . . AOE 25 | . . . . . 25 Terrain Rammed . | . . . . . . Walls Destroyed . | . . . . . . Machines Disabled . | . . . . . . Actions | -11 -10 -10 -9 -9 -9 --------- Run | Yrd Mat Min Mat Min Exi Total 2597 | 37 672 632 547 443 266 Wait 72 | . . 9 15 30 18 Move 2218 | 29 573 575 416 396 229 Hop . | . . . . . . Pick Up 57 | 3 16 18 17 3 . Fast Attach 3 | . . 3 . . . Attach 28 | 3 5 3 11 1 5 Detach . | . . . . . . Swap 6 | . 1 . 2 1 2 Drop 11 | . 2 3 4 2 . Fire 201 | 2 75 21 81 10 12 Melee . | . . . . . . Ram . | . . . . . . Kick . | . . . . . . Crush 1 | . . . 1 . . Escape Stasis . | . . . . . . Rewire . | . . . . . . Trap . | . . . . . . Miscellaneous . | . . . . . . Route ------- -11/Scrapyard -10/Materials (discovered 4 exits: [*Mat x3] / *Min) -10/Mines (discovered 3 exits: [*Mat x2] / [*Sub]) -9/Materials (discovered 5 exits: [*Mat x3] / [*Min x2]) -9/Mines (discovered 2 exits: [*Mat] / *Exi) -9/Exiles History --------- Turn | Location | Event 5 | -11/Scrapyard | Discovered new exit (range 15) 39 | -11/Scrapyard | Entered Materials 315 | -10/Materials | Build established: Mutant 368 | -10/Materials | Discovered new exit (range 9) 506 | -10/Materials | Discovered new exit (range 16) 781 | -10/Materials | Discovered new exit (range 13) 1121 | -10/Materials | Build established: Scavenger-Mutant 1540 | -10/Materials | Discovered new exit (range 12) 1620 | -10/Materials | Entered Mines 1626 | -10/Mines | Core integrity fell below 50% 1707 | -10/Mines | Discovered new exit (range 13) 1758 | -10/Mines | Received a Mining Laser from a helpful Derelict 2390 | -10/Mines | Discovered new exit (range 9) 2427 | -10/Mines | Found the Drone Emporium 2447 | -10/Mines | Found Prototype Device 2450 | -10/Mines | Identified Splice Drone Bay 2954 | -10/Mines | Discovered new exit (range 8) 3089 | -10/Mines | Entered Materials 3089 | -9/Materials | Evolved 2 slots: Utility x1, Weapon x1 3430 | -9/Materials | Discovered new exit (range 7) 3480 | -9/Materials | Lost 3 parts (1n2w) 3502 | -9/Materials | Discovered new exit (range 16) 3614 | -9/Materials | Core integrity fell below 50% 3796 | -9/Materials | Discovered new exit (range 3) 4071 | -9/Materials | Discovered new exit (range 4) 4269 | -9/Materials | Build established: Tank 4338 | -9/Materials | Discovered new exit (range 16) 4379 | -9/Materials | Entered Mines 4380 | -9/Mines | Assembled infested the area 4392 | -9/Mines | Core integrity fell below 20% 4708 | -9/Mines | Build established: Scavenger-Tank 4803 | -9/Mines | A weapon hastily lodged in a ceiling crevice suddenly fell to the ground 5064 | -9/Mines | YI-UF0 nonchalantly dropped a Grenade Launcher on the ground 5269 | -9/Mines | Assisted by bots powering up and referring to "LRC-V3" 5279 | -9/Mines | Discovered new exit (range 16) 5363 | -9/Mines | Found a damaged Exp. Sensor Array with a note attached 5368 | -9/Mines | Found Prototype Device 5386 | -9/Mines | Discovered new exit (range 5) 5399 | -9/Mines | Entered Exiles 5399 | -9/Exiles | Accompanied by 3 allies 5457 | -9/Exiles | Met 8R-AWN 5498 | -9/Exiles | Met EX-HEX 5572 | -9/Exiles | Met EX-BIN 5601 | -9/Exiles | Aligned with FarCom system 5603 | -9/Exiles | Given EX-Vault access code 5661 | -9/Exiles | Opened EX-Vault 5722 | -9/Exiles | Warned to stay clear of 0b10 Research branches 5789 | -9/Exiles | Met EX-DEC 5910 | -9/Exiles | Attacked by the Exiles 5976 | -9/Exiles | Lost 3 allies 5986 | -9/Exiles | Destroyed 7 combat bots 5996 | -9/Exiles | Lost 4 parts (1n1u2w) 6007 | -9/Exiles | Destroyed by 8R-AWN with 8R-AWN's Boregun Last Messages --------------- as-09943 destroyed. The unstable cave ceiling collapses. Penetrated by HV Slug. HV Slug penetrates Machine. Machine disabled. HV Slug penetrates Wall. HV Slug penetrates Earth. Penetrated by HV Slug. HV Slug penetrates Machine. Penetrated by HV Slug. HV Slug penetrates Wall. Penetrated by HV Slug. HV Slug penetrates Wall. HV Slug penetrates Machine. HV Slug penetrates Wall. Penetrated by HV Slug. HV Slug penetrates Wall. Penetrated by HV Slug. HV Slug penetrates Wall. Penetrated by HV Slug. Map ----- +----------------------------------------------------+ | ?????????????????????????????????????????????????? | | ?????????????????????????????????????????????????? | | ?????????????????????????????????????????????????? | | ?????????????????????????????????????????????????? | | ?????????????????????????????????????????????????? | | ?????????????????????????????????????????????????? | | ?????????????????????????????????????????????????? | | ?????????????????????????????????????????????????? | | ?????????????????????????????????????????????????? | | ?????????????????????????????????????????????????? | | ?????????????????????????????????????????????????? | | ??????????????? ??????????????#######????????????? | | ?????????????? ######???????#!!! "#????????????? | | ?????????????? #""#??????# "#????????????? | | ?????????????? ??????# "#????????????? | | ??????????????" #????## ""#????????????? | | ??????????????" #####" ""#????????????? | | ???????????????# ## "#????????????" | | ????????????????# #"" ###???????????" | | ???????????????????# #??????????"" | | ?????????????????????## [ #??????????"" | | ??????????????????????### =% =% #?????????? | | ???????????????######### = %! # #???????????" | | ???????????????#; !! % g ##??????????# | | ????????????????#! ####???### | | ????????????????#! @ ## " ""#####X# | | ????????????????#! ##??#" | | ??????????????# ; ! """###???#"# | | ??????????????####;;######?????#### | | ?????????????????#????????????????## | | ????????????????????????????????????### | | ??????????????????????????????????????## | | ???????????????????????????????????????## | | ????????????????????????????????????????##" | | ?????????????????????????????????????????#"" | | ?????????????????????????????????????????#" | | ????????????????????????????????????????#"" | | ????????????????????????????????????????#""" | | ????????????????????????????????????????""" | | ????????????????????????????????????????""" | | ?????????????????????????????????????????" | | ?????????????????????????????????????????"" | | ????????????????????????????????????????"" | | ?????????????????????????????????????????"" | | ?????????????????????????????????????????"""" | | ?????????????????????????????????????????? | | ???????????????????????????????????????????? | | ?????????????????????????????????????????????" | | ?????????????????????????????????????????????????? | | ?????????????????????????????????????????????????? | +----------------------------------------------------+ Best States ------------- Heat Dissipation 28 Energy Generation 14 Energy Capacity 265 Matter Stores 300 Matter Capacity 300 Sight Range 16 Terrain Scan Density 10 Armor Coverage 150 Weapon Shielding 33 Evasion (%) 50 Recoil Reduction 2 Item Schematics ----------------- None Robot Schematics ------------------ None Fabricated ------------ Nothing Repaired ---------- Nothing Alien Tech Used ----------------- None Achievements -------------- None Challenges ------------ None Game ------ Seed AbsorptionMassStatue Manual? 0 Play Time 00:18:54 Cumulative 178.3 hours Start 2025.10.10 @ 11:40:26 End 2025.10.10 @ 11:57:06 Sessions 1 Manual Loads 0 Difficulty Rogue Special Mode None Game No. 547 Rogue 546 Adventurer 1 Explorer 0 Win Type - Total 0 Types 0/0/0/0/0/0/0/0/0/0 Lore% 61 Gallery% 58 Achievement% 44 Wizard Run 0 Options --------- Layout 1 ASCII 0 Keyboard 0 Movement Mouse Keybinds 0 Fullscreen 1 Font 24/Smallcaps Map View 50x35 Zoom Use 0% Tactical HUD 0 Map Filters NONE Filters NONE Steam 1 RUN: b27c80fa-acef-4774-b2fa-67db674965be